[Event "Hungarian Youth-ch U12 2022"]
[Site "Eger"]
[Date "2022.07.27"]
[Round "5.1"]
[White "Feher, Botond"]
[Black "Horvath, Andras"]
[Result "1-0"]
[ECO "C56"]
[WhiteElo "1747"]
[BlackElo "2251"]
[Annotator "TA"]
[PlyCount "35"]
[EventDate "2022.07.21"]
[EventType "tourn"]
[EventCountry "HUN"]
[SourceTitle "playchess.com"]
[Source "ChessBase"]
[SourceQuality "1"]
[TimeControl "40/5400+30:1800+30"]

{[%evp 19,35,-6,0,-10,326,329,449,469,457,451,447,452,416,408,29996,29997,29997,29998]} 1. e4 {[%emt 0:00:32]} e5 {[%emt 0:00:36]} 2. Nf3 {[%emt 0:00:04]} Nc6 {[%emt 0:00:11]} 3. Bc4 {[%emt 0:00:02]} Nf6 {[%emt 0:00:18]} 4. d4 {[%emt 0:00:04]} exd4 {[%emt 0:00:18]} 5. O-O {[%emt 0:00:04]} Nxe4 {[%emt 0:00:10]} 6. Re1 {[%emt 0:00:04]} d5 {[%emt 0:00:12]} 7. Bxd5 {[%emt 0:00:04]} Qxd5 {[%emt 0:00:12]} 8. Nc3 {[%emt 0:00:02]} Qh5 {[%emt 0:00:18]} 9. Nxe4 {[%emt 0:00:07]} Be6 {[%emt 0:00:58]} 10. Bg5 {[%emt 0:00:05]} Bd6 {[%emt 0:00:34]} 11. c4 {[%emt 0:02:49] C56: Two Knights: 4 d4 exd4 5 0-0 Nxe4.} dxc3 $2 {[%emt 0:24:53][%mdl 8192]} (11... h6 $11 {and Black is okay.} 12. Nxd6+ cxd6) 12. Nxd6+ $18 {[%emt 0:09:29]} cxd6 {[%emt 0:00:24] [#]} 13. Qxd6 $146 {[%emt 0:01:12] White is clearly winning.} ({Predecessor:} 13. bxc3 O-O 14. Qxd6 Bg4 15. Qg3 Rae8 16. Be3 b6 17. Rec1 Re7 18. Nd4 Ne5 19. Bf4 {½-½ (36) Kalinova,E-Brandis,B (1731) Mureck 2012}) 13... h6 {[%emt 0:06:56]} 14. Rxe6+ {[%emt 0:04:26]} ({And not} 14. Rad1 hxg5 15. Qd7+ (15. bxc3 $2 g4 $19) 15... Kf8 16. Qxb7 Re8 17. Qxc6 cxb2 $11) 14... fxe6 {[%emt 0:01:25]} 15. Qxe6+ {[%emt 0:00:09]} Kf8 {[%emt 0:00:47] [#]} 16. Ne5 $1 {[%emt 0:00:21][%mdl 64] Deflection} Nxe5 {[%emt 0:09:08]} (16... Rd8 $18 17. Ng6+ Qxg6 18. Qxg6 cxb2) 17. Be7+ {[%emt 0:00:17]} Ke8 {[%emt 0:01:23] [#]} 18. Bd6+ $1 {[%emt 0:00:07] White took control after the opening.  Weighted Error Value: White=0.01 (flawless) /Black=1.66} 1-0

[Event "Hungarian Youth-ch U12 2022"]
[Site "Eger"]
[Date "2022.07.27"]
[Round "5.2"]
[White "Bod, Marton"]
[Black "Juhasz, Edmond"]
[Result "1/2-1/2"]
[ECO "B75"]
[WhiteElo "1758"]
[BlackElo "1510"]
[Annotator "NA RC COMBH"]
[PlyCount "102"]
[EventDate "2022.07.21"]
[EventType "tourn"]
[EventCountry "HUN"]
[SourceTitle "playchess.com"]
[Source "ChessBase"]
[SourceQuality "1"]
[TimeControl "40/5400+30:1800+30"]

1. e4 c5 {[%emt 0:00:50]} 2. Nf3 {[%emt 0:00:53]} d6 {[%emt 0:00:33]} 3. d4 {[%emt 0:00:29]} cxd4 {[%emt 0:00:48]} 4. Nxd4 {[%emt 0:00:11]} Nf6 {[%emt 0:00:29]} 5. Nc3 {[%emt 0:00:11]} g6 {[%emt 0:00:32]} 6. Be3 {[%emt 0:00:12]} Bg7 {[%emt 0:00:34]} 7. f3 {[%emt 0:00:22]} Nc6 {[%emt 0:01:12]} 8. Qd2 {[%emt 0:01:57]} h5 {[%emt 0:02:28]} 9. Bc4 {[%emt 0:02:19]} Bd7 {[%emt 0:01:34]} 10. O-O-O {[%emt 0:01:35]} Na5 {[%emt 0:00:58]} 11. Bb3 {[%emt 0:01:22]} Nxb3+ {[%emt 0:00:13]} 12. axb3 {[%emt 0:00:08]} Qa5 {[%emt 0:01:01]} 13. Kb1 {[%emt 0:03:07]} Rc8 {[%emt 0:04:30]} 14. Rhe1 {[%emt 0:06:08]} Bc6 {[%emt 0:10:19]} 15. Bf2 {[%emt 0:07:39]} Nd7 {[%emt 0:03:12]} 16. f4 {[%emt 0:05:34]} Qc7 {[%emt 0:08:45]} 17. b4 {[%emt 0:01:39]} a6 {[%emt 0:03:08]} 18. Nxc6 {[%emt 0:12:57]} bxc6 {[%emt 0:06:53]} 19. Bd4 {[%emt 0:02:35]} Bxd4 {[%emt 0:03:46]} 20. Qxd4 {[%emt 0:00:06]} O-O {[%emt 0:00:26]} 21. e5 {[%emt 0:02:58]} d5 {[%emt 0:03:25]} 22. e6 {[%emt 0:02:33]} Nf6 {[%emt 0:03:24]} 23. exf7+ {[%emt 0:00:34]} Rxf7 {[%emt 0:00:57]} 24. Qd3 {[%emt 0:02:41]} Qxf4 {[%emt 0:07:32]} 25. Qxa6 {[%emt 0:01:22]} Rb8 {[%emt 0:03:01]} 26. Na2 {[%emt 0:02:27]} Qc7 {[%emt 0:03:02]} 27. g3 {[%emt 0:08:27]} Ne4 {[%emt 0:03:23]} 28. Qd3 {[%emt 0:06:15]} Qd6 {[%emt 0:04:48]} 29. Qb3 {[%emt 0:04:52]} Qf6 {[%emt 0:01:57]} 30. Re2 {[%emt 0:03:05]} Kf8 {[%emt 0:06:34]} 31. Nc1 {[%emt 0:01:12]} e6 {[%emt 0:03:47]} 32. Nd3 {[%emt 0:00:57]} Qd4 {[%emt 0:03:36]} 33. c3 {[%emt 0:00:47]} Qf6 {[%emt 0:00:16]} 34. Qa3 {[%emt 0:02:22]} Kg8 {[%emt 0:00:41]} 35. Qa6 {[%emt 0:00:48]} Rc7 {[%emt 0:01:19]} 36. Nf4 {[%emt 0:00:31]} g5 {[%emt 0:02:33]} 37. Nd3 {[%emt 0:01:57]} Kg7 {[%emt 0:01:19]} 38. Qa5 {[%emt 0:01:06]} Rcb7 {[%emt 0:00:44]} 39. Nc5 {[%emt 0:00:29]} Nxc5 {[%emt 0:00:37]} 40. Qxc5 {[%emt 0:00:00]} Qf5+ {[%emt 0:00:00]} 41. Kc1 {[%emt 0:00:54]} Ra8 {[%emt 0:07:34]} 42. Qxc6 {[%emt 0:05:51]} Ra1+ {[%emt 0:00:25]} 43. Kd2 {[%emt 0:00:12]} Rxd1+ {[%emt 0:00:22]} 44. Kxd1 {[%emt 0:00:07]} Qb1+ {[%emt 0:02:25]} 45. Kd2 {[%emt 0:00:11]} Qxb2+ {[%emt 0:00:26]} 46. Ke3 {[%emt 0:00:54]} Qc1+ {[%emt 0:00:20]} 47. Kd3 {[%emt 0:01:59]} Qd1+ {[%emt 0:03:06]} 48. Rd2 {[%emt 0:01:33]} Qb1+ 49. Ke2 {[%emt 0:06:05]} Qe4+ {[%emt 0:03:29]} 50. Kd1 {[%emt 0:00:24]} Qb1+ {[%emt 0:00:16]} 51. Ke2 {[%emt 0:00:09]} Rf7 1/2-1/2

[Event "Hungarian Youth-ch U12 2022"]
[Site "Eger"]
[Date "2022.07.27"]
[Round "5.3"]
[White "Karacsonyi, Bank"]
[Black "Onodi, Miklos"]
[Result "1-0"]
[ECO "B29"]
[WhiteElo "1791"]
[BlackElo "1901"]
[Annotator "TA"]
[PlyCount "97"]
[EventDate "2022.07.21"]
[EventType "tourn"]
[EventCountry "HUN"]
[SourceTitle "playchess.com"]
[Source "ChessBase"]
[SourceQuality "1"]
[TimeControl "40/5400+30:1800+30"]

{[%evp 10,97,-41,-48,-37,-39,-47,-28,-37,-139,-125,-141,-79,-175,-135,-121,-83,-98,-101,-94,-68,-57,-43,-48,-35,-50,-35,-43,-43,-54,-42,-56,-51,-50,0,-8,-7,-8,85,84,73,45,48,0,0,0,0,0,0,0,48,0,0,0,0,0,0,0,0,-3,-3,-6,-7,-4,0,-27,-18,-28,-19,-139,-133,-103,8,8,528,479,4618,4602,5712,5712,5583,5583,4570,4794,1561,1360,29978,29980,29979,29980]} 1. e4 {[%emt 0:00:33]} c5 {[%emt 0:00:33]} 2. Nf3 {[%emt 0:00:04]} Nf6 {[%emt 0:00:04]} 3. e5 {[%emt 0:04:55]} Nd5 {[%emt 0:01:16]} 4. b3 {[%emt 0:07:49]} Nc6 {[%emt 0:20:34]} 5. c4 {[%emt 0:02:00]} Nc7 {[%emt 0:00:43]} 6. Bb2 {[%emt 0:01:03]} Ne6 {[%emt 0:00:19] B30: Sicilian: 2...Nc6 3 Bb5, lines without ...g6.} 7. Na3 {[%emt 0:08:58]} g6 {[%emt 0:00:50]} 8. g3 {[%emt 0:12:44]} Bg7 {[%emt 0:00:39] [#] Black has an edge.} 9. Bg2 $146 {[%emt 0:01:19]} ({White should play} 9. Rb1 $15) ({Predecessor:} 9. Rb1 O-O 10. Nc2 Rb8 11. Bg2 Qa5 12. a4 a6 13. Bc3 Qc7 14. Qe2 b6 15. O-O {1-0 (26) Kis,J (2215)-Csete Szemesi,A Hungary 1997}) 9... d6 $17 {[%emt 0:02:05][%cal Rd6e5]} 10. Qe2 {[%emt 0:03:43]} Ncd4 {[%emt 0:05:16]} (10... O-O $142 11. O-O dxe5) 11. Qe4 {[%emt 0:04:22]} (11. Nxd4 $17 Nxd4 12. Bxd4 cxd4 13. c5) 11... Nxf3+ {[%emt 0:00:30]} 12. Qxf3 {[%emt 0:00:24]} Bxe5 {[%emt 0:06:44]} 13. Bxe5 {[%emt 0:00:30]} dxe5 {[%emt 0:00:04]} 14. Qe3 {[%emt 0:00:38]} Qd4 {[%emt 0:00:45]} 15. O-O {[%emt 0:00:05]} O-O {[%emt 0:00:54]} 16. Rfe1 {[%emt 0:00:31]} f6 {[%emt 0:07:33][%cal Bf7f6,Bf6f5][%mdl 32]} 17. Bd5 {[%emt 0:00:45]} Kg7 {[%emt 0:13:09]} 18. f4 {[%emt 0:04:47]} Qxe3+ {[%emt 0:02:25]} 19. Rxe3 {[%emt 0:00:28]} Nd4 {[%emt 0:03:17]} ({Don't play} 19... exf4 20. Ree1 $11) 20. fxe5 {[%emt 0:00:40]} f5 $1 {[%emt 0:03:00]} 21. Rc1 {[%emt 0:01:56]} e6 {[%emt 0:01:39]} (21... Rb8 $15) 22. Bg2 {[%emt 0:00:20]} Rb8 {[%emt 0:00:40]} 23. Nb5 {[%emt 0:00:43]} Nxb5 {[%emt 0:01:19]} (23... Rd8 $11) 24. cxb5 $16 {[%emt 0:00:33]} b6 {[%emt 0:00:21]} 25. d4 {[%emt 0:00:28] White is more active.} (25. b4 $5) 25... cxd4 {[%emt 0:01:15]} 26. Rc7+ {[%emt 0:01:02]} (26. Rd3 $14 {deserves consideration.}) 26... Rf7 $11 {[%emt 0:00:08]} 27. Rxf7+ {[%emt 0:00:04]} Kxf7 {[%emt 0:00:08][%mdl 4096] Endgame KRB-KRB} 28. Rd3 {[%emt 0:00:03]} Bb7 {[%emt 0:01:20]} 29. Rxd4 {[%emt 0:00:35]} Ke7 {[%emt 0:00:05] Prevents Rd7+.} (29... Bd5 $1 $11) 30. Bc6 {[%emt 0:00:20]} (30. Rh4 $14 {feels stronger.} h5 31. Ra4 Bxg2 32. Kxg2) 30... Bxc6 {[%emt 0:02:47]} 31. bxc6 {[%emt 0:00:09] KR-KR} Rd8 {[%emt 0:00:06] Against Rd7+} 32. Ra4 {[%emt 0:01:23]} a5 {[%emt 0:02:27] Strongly threatening ...Rd1+.} 33. Rc4 {[%emt 0:00:46]} Rd1+ {[%emt 0:02:29]} 34. Kg2 {[%emt 0:01:13] Black must now prevent c7.} Kd8 {[%emt 0:01:53] Threatens to win with ...Kc7.} 35. c7+ {[%emt 0:03:26]} Kc8 {[%emt 0:00:01] next ...Rd2+ is good for Black.} 36. Rc6 $1 {[%emt 0:00:14][%csl LRb6,LRe6]} Rd2+ {[%emt 0:00:38]} 37. Kh3 {[%emt 0:00:06]} b5 {[%emt 0:05:12]} ({Reject} 37... Rxa2 $6 38. Rxb6 Kxc7 39. Rxe6 $15) 38. Rxe6 {[%emt 0:04:51]} Kxc7 {[%emt 0:03:22]} (38... Rxa2 {is more complex.} 39. Kh4 h6 40. h3 a4) 39. a3 {[%emt 0:02:08] [#]} (39. a4 $11 {remains equal.}) 39... Ra2 $1 $17 {[%emt 0:03:25]} 40. Re7+ {[%emt 0:00:00]} Kc8 {[%emt 0:00:00]} (40... Kc6 $17 41. a4 (41. Rxh7 $2 Rxa3 42. Kg2 Rxb3 $19) 41... bxa4 42. bxa4 Rxa4 43. Rxh7 Re4) 41. Rxh7 $11 {[%emt 0:01:56] With the idea Ra7.} Rxa3 $2 {[%emt 0:02:16][%mdl 8192] [#]} (41... g5 $1 $11 42. g4 f4) 42. e6 $1 $18 {[%emt 0:01:09] White wants to mate with Rh8+.} Rxb3 {[%emt 0:00:34]} (42... Kd8 $142 43. Kh4 (43. Rd7+ Ke8 $18) 43... Rxb3) 43. Rh8+ {[%emt 0:00:08]} Kc7 {[%emt 0:00:18]} 44. e7 {[%emt 0:00:07]} Re3 {[%emt 0:00:02]} 45. e8=Q {[%emt 0:00:13]} Rxe8 {[%emt 0:00:02]} 46. Rxe8 {[%emt 0:00:02]} a4 {[%emt 0:01:01]} 47. Kh4 {[%emt 0:00:38] aiming for Kg5.} ({Less strong is} 47. Ra8 Kb7 48. Rd8 Kc6 $18) 47... b4 {[%emt 0:00:18]} 48. Ra8 {[%emt 0:00:08]} a3 {[%emt 0:00:06]} 49. Ra4 {[%emt 0:00:07] What a bad dream for Black.  Weighted Error Value: White=0.21 (precise) /Black=0.46} 1-0

[Event "Hungarian Youth-ch U12 2022"]
[Site "Eger"]
[Date "2022.07.27"]
[Round "5.4"]
[White "Horvath, Matyas Sandor"]
[Black "Kovacs, Kristof"]
[Result "0-1"]
[ECO "C44"]
[WhiteElo "1431"]
[BlackElo "1812"]
[Annotator "NA RC COMBH"]
[PlyCount "104"]
[EventDate "2022.07.21"]
[EventType "tourn"]
[EventCountry "HUN"]
[SourceTitle "playchess.com"]
[Source "ChessBase"]
[SourceQuality "1"]
[TimeControl "40/5400+30:1800+30"]

{[%evp 19,92,137,98,94,173,32767,32767,32767,32767,32767,147,87,32767,76,158,129,135,145,145,32767,92,0,21,32767,0,0,32767,0,0,32767,7,32767,32767,32767,-61,-120,32767,-89,-98,-428,-502,32767,-502,-433,-513,-462,32767,32767,32767,32767,-515,-439,32767,32767,-653,-653,-577,-706,-668,32767,32767,32767,32767,32767,32767,32767,-2704,-984,-1492,-1697,-5698,-12846,-29960,32767,-12849]} 1. e4 {[%emt 0:00:32]} e5 {[%emt 0:00:38]} 2. Nf3 {[%emt 0:00:09]} Nc6 {[%emt 0:00:10]} 3. c3 {[%emt 0:00:53]} d5 {[%emt 0:01:02]} 4. Qa4 {[%emt 0:01:26]} dxe4 {[%emt 0:01:15]} 5. Nxe5 {[%emt 0:01:25]} Qd5 {[%emt 0:00:10]} 6. Nxc6 {[%emt 0:00:33]} bxc6 {[%emt 0:00:04]} 7. Bc4 {[%emt 0:01:36]} Qd6 {[%emt 0:02:06] 7...Qd6 is better than 7...Qd7.} 8. O-O {[%emt 0:02:53]} Nf6 {[%emt 0:01:28]} 9. d3 {[%emt 0:02:10]} exd3 {[%emt 0:05:22] [#]} 10. Bf4 $1 {[%emt 0:03:59]} Qd7 {[%emt 0:01:11]} 11. Bxd3 {[%emt 0:02:42]} Nd5 {[%emt 0:03:42]} (11... Rb8 $16) 12. Re1+ {[%emt 0:03:51]} Be7 {[%emt 0:00:20] [#]} 13. Bg3 $146 {[%emt 0:01:19]} ({Predecessor:} 13. Be4 Bb7 14. Bxd5 cxd5 15. Qb4 Bc6 16. Qa5 O-O 17. Qxc7 Qxc7 18. Bxc7 Bf6 19. Nd2 {1-0 (37) Hackl Sommer,R (1984)-Da Costa Campos,A (1942) Germany 2017}) 13... O-O {[%emt 0:00:33]} 14. Qc2 {[%emt 0:06:33]} f5 {[%emt 0:01:38] [#]} ({Better is} 14... g6) 15. f3 {[%emt 0:03:10]} (15. Be5 $142 $1) 15... h6 {[%emt 0:04:02] [#]} 16. Na3 {[%emt 0:07:06]} ({Better is} 16. Bf2 $1) 16... f4 {[%emt 0:02:20]} ({Better is} 16... Bc5+ $14 17. Bf2 Bxf2+ 18. Kxf2 (18. Qxf2 Nxc3 19. Bc4+ Nd5 $14) 18... Qd6) 17. Bf2 {[%emt 0:01:04]} Bxa3 {[%emt 0:08:22]} 18. bxa3 {[%emt 0:01:16]} Qf7 {[%emt 0:04:16]} 19. Bc4 {[%emt 0:09:20]} Bf5 {[%emt 0:00:41]} 20. Bd3 {[%emt 0:01:38]} ({White should play} 20. Qd2 $16) 20... a5 {[%emt 0:02:40]} 21. Bc5 {[%emt 0:02:54]} Bxd3 {[%emt 0:00:44]} 22. Qxd3 {[%emt 0:00:54]} Rfe8 {[%emt 0:00:13]} 23. a4 {[%emt 0:04:13]} Rad8 {[%emt 0:01:40]} 24. Rxe8+ {[%emt 0:00:55]} Qxe8 {[%emt 0:00:55]} 25. Qc2 {[%emt 0:02:08]} Ne3 {[%emt 0:01:34]} 26. Qf2 {[%emt 0:04:42]} Rd3 {[%emt 0:01:06]} 27. Bd4 {[%emt 0:01:36]} (27. Qb2 $142) 27... c5 {[%emt 0:01:00]} 28. Bxc5 {[%emt 0:03:29]} Rxc3 {[%emt 0:00:20]} 29. Bd4 $2 {[%emt 0:01:39]} (29. Bxe3 $17 {nothing else works.} Qxe3 30. Qxe3 fxe3 31. Kf1) 29... Rc2 {[%emt 0:00:11]} 30. Bxe3 {[%emt 0:01:44]} Rxf2 $19 {[%emt 0:00:39]} 31. Bxf2 {[%emt 0:00:08]} Qxa4 {[%emt 0:00:05]} 32. h3 {[%emt 0:00:53]} Qc2 {[%emt 0:00:21]} 33. a4 {[%emt 0:00:40]} c5 {[%emt 0:00:12]} 34. Be1 {[%emt 0:01:11]} Qb2 {[%emt 0:00:51]} 35. Rd1 {[%emt 0:00:35]} Qb3 {[%emt 0:00:38]} 36. Ra1 {[%emt 0:02:04]} c4 {[%emt 0:02:45]} 37. Bxa5 {[%emt 0:01:55]} c3 {[%emt 0:00:18]} 38. Bxc3 {[%emt 0:03:12]} Qxc3 {[%emt 0:00:05]} 39. Ra2 {[%emt 0:00:27]} Qc4 {[%emt 0:00:14]} 40. Rf2 {[%emt 0:00:00]} Qxa4 {[%emt 0:00:00]} 41. Re2 {[%emt 0:03:18]} Qd1+ {[%emt 0:00:24]} 42. Kf2 {[%emt 0:00:19]} g5 {[%emt 0:00:02]} 43. Re4 {[%emt 0:01:26]} Kf7 {[%emt 0:00:09]} 44. h4 {[%emt 0:01:05]} Kf6 {[%emt 0:01:08]} (44... Kg6 $142 45. hxg5 hxg5 46. Re1 Qd2+ 47. Re2 Qd4+ 48. Ke1 Kh5 49. Kf1 Qd1+ 50. Kf2 Qd4+ 51. Kf1 g4 52. fxg4+ Kxg4 53. Re8 Qc4+ 54. Kf2 Qc5+ 55. Ke1 Qg1+ 56. Kd2 Qxg2+ 57. Re2 f3 58. Rxg2+ fxg2 59. Kc3 g1=Q 60. Kb4 Qb6+ 61. Kc4 Kf5 62. Kd3 Qc5 63. Ke2 Qc3 64. Kf2 Kf4 65. Kf1 Kf3 66. Kg1 Qg7+ 67. Kh2 Qg2#) 45. hxg5+ {[%emt 0:01:18]} hxg5 {[%emt 0:00:51]} 46. g4 {[%emt 0:02:56]} fxg3+ {[%emt 0:00:26]} 47. Kxg3 {[%emt 0:00:28]} Qg1+ {[%emt 0:00:02]} 48. Kh3 {[%emt 0:00:42]} Qf2 {[%emt 0:01:34]} 49. Rg4 {[%emt 0:02:21]} Qxf3+ {[%emt 0:00:05]} 50. Rg3 {[%emt 0:00:17]} Qf1+ {[%emt 0:00:15]} 51. Kg4 {[%emt 0:00:48]} Qf5+ {[%emt 0:00:18]} 52. Kh5 {[%emt 0:00:38]} g4+ {[%emt 0:00:02]} 0-1

[Event "Hungarian Youth-ch U12 2022"]
[Site "Eger"]
[Date "2022.07.27"]
[Round "5.5"]
[White "Lehocz, Jozsef Jr."]
[Black "Janosi, Bence"]
[Result "1-0"]
[ECO "A13"]
[WhiteElo "1919"]
[BlackElo "1428"]
[Annotator "TA"]
[PlyCount "61"]
[EventDate "2022.07.21"]
[EventType "tourn"]
[EventCountry "HUN"]
[SourceTitle "playchess.com"]
[Source "ChessBase"]
[SourceQuality "1"]
[TimeControl "40/5400+30:1800+30"]

{[%evp 13,61,26,47,39,33,18,31,33,43,46,71,30,75,52,51,55,74,75,121,139,137,102,108,100,100,93,312,294,366,370,455,447,413,378,639,645,593,429,515,512,631,473,510,515,966,959,927,893,1021,1014]} 1. Nf3 {[%emt 0:00:32]} d5 {[%emt 0:00:41]} 2. c4 {[%emt 0:00:10]} e6 {[%emt 0:00:55]} 3. g3 {[%emt 0:00:41]} Nf6 {[%emt 0:00:43]} 4. Bg2 {[%emt 0:00:28]} Be7 {[%emt 0:01:05]} 5. d4 {[%emt 0:00:54]} O-O {[%emt 0:00:37]} 6. Qc2 {[%emt 0:00:23]} Na6 {[%emt 0:01:52]} 7. O-O {[%emt 0:02:14]} c6 {[%emt 0:02:53]} 8. a3 {[%emt 0:01:35] E06: Closed Catalan: Early deviations.} b6 {[%emt 0:02:21]} 9. Nbd2 {[%emt 0:00:17]} Bb7 {[%emt 0:00:47]} 10. b4 {[%emt 0:11:32] [#] White is slightly better.} Nc7 $146 {[%emt 0:04:57]} ({Predecessor:} 10... c5 11. dxc5 bxc5 12. b5 Nc7 13. a4 Rc8 14. Bb2 Nce8 15. e3 Nd6 16. Rfd1 Qc7 {1-0 (29) Holm,K (2413)-Fossan,A (2061) Norway 2017}) 11. Bb2 {[%emt 0:01:38]} Rc8 {[%emt 0:05:03]} 12. e4 {[%emt 0:04:53]} dxe4 {[%emt 0:00:55]} 13. Nxe4 {[%emt 0:00:15]} Nxe4 {[%emt 0:01:16]} 14. Qxe4 {[%emt 0:00:20]} Ba8 {[%emt 0:00:58]} 15. Qe3 {[%emt 0:08:09]} c5 {[%emt 0:02:34]} ({Black should play} 15... Bf6) 16. dxc5 $16 {[%emt 0:03:23]} (16. bxc5 $6 bxc5 17. Rfd1 (17. dxc5 Qe8 $11) 17... Qe8 $14) 16... bxc5 {[%emt 0:01:02]} 17. Rfd1 {[%emt 0:00:12]} (17. bxc5 $6 Na6 $11) 17... Qe8 {[%emt 0:01:01]} 18. b5 $36 {[%emt 0:00:26][%mdl 2048] White is on the roll. 0x0.0005ed196c44dp-1022s more active pieces.} ({Reject} 18. bxc5 $6 Na6 $11) 18... f6 {[%emt 0:03:37] Inhibits Ne5.} 19. a4 {[%emt 0:02:16]} Rb8 $2 {[%emt 0:05:12] [#] A mistake that costs the game.} (19... e5 $16 {keeps fighting.}) 20. Ba3 $18 {[%emt 0:00:12]} f5 {[%emt 0:05:36]} 21. Ne5 {[%emt 0:12:07][%cal Bf3e5,Be5d7,Bd7f8,Bf8e6][%mdl 32]} ({Much less strong is} 21. Bxc5 f4 22. gxf4 Bxc5 23. Qxc5 Qf7 $18) 21... Rc8 {[%emt 0:07:46]} 22. Bxa8 {[%emt 0:02:29]} Nxa8 {[%emt 0:01:45]} 23. Nd7 {[%emt 0:01:13]} Bf6 $2 {[%emt 0:01:31]} (23... Rf7 24. Qxe6 Nc7) 24. Nxf8 {[%emt 0:00:56] White is clearly winning.} Bxa1 {[%emt 0:01:21]} 25. Nxe6 {[%emt 0:05:14]} Bf6 {[%emt 0:01:03]} 26. Bxc5 {[%emt 0:04:34]} Kf7 {[%emt 0:01:42]} 27. Nf4 {[%emt 0:01:21]} Qxe3 {[%emt 0:00:50]} 28. Bxe3 {[%emt 0:00:04] [#] Threatens to win with Rd7+.} Rxc4 {[%emt 0:00:44]} (28... g5 $142 29. Ne2 (29. Bxa7 gxf4 30. c5 Nc7 $18) 29... Nb6) 29. Rd7+ {[%emt 0:00:04]} Ke8 {[%emt 0:02:23]} 30. Rxa7 {[%emt 0:00:12]} Nc7 {[%emt 0:00:21]} 31. b6 {[%emt 0:00:13] Weighted Error Value: White=0.21 (precise) /Black=0.71} 1-0

[Event "Hungarian Youth-ch U12 2022"]
[Site "Eger"]
[Date "2022.07.27"]
[Round "5.6"]
[White "Torok, Rita"]
[Black "Biro, Beata"]
[Result "0-1"]
[ECO "C00"]
[WhiteElo "1275"]
[BlackElo "1551"]
[Annotator "NA RC COMBH"]
[PlyCount "116"]
[EventDate "2022.07.21"]
[EventType "tourn"]
[EventCountry "HUN"]
[SourceTitle "playchess.com"]
[Source "ChessBase"]
[SourceQuality "1"]
[TimeControl "40/5400+30:1800+30"]

1. e4 {[%emt 0:00:34]} e6 {[%emt 0:00:39]} 2. Nf3 {[%emt 0:00:14]} d5 {[%emt 0:00:34]} 3. exd5 {[%emt 0:02:08]} exd5 {[%emt 0:00:55]} 4. d4 {[%emt 0:00:33]} Nf6 {[%emt 0:00:35]} 5. Nc3 {[%emt 0:01:07]} Be7 {[%emt 0:01:05]} 6. Be3 {[%emt 0:01:24]} O-O {[%emt 0:01:38]} 7. Be2 {[%emt 0:01:26]} Bf5 {[%emt 0:01:27]} 8. O-O {[%emt 0:01:52]} Nbd7 {[%emt 0:02:34]} 9. Bg5 {[%emt 0:08:33]} h6 {[%emt 0:02:15]} 10. Bxf6 {[%emt 0:02:05]} Nxf6 {[%emt 0:01:43]} 11. h3 {[%emt 0:05:07]} c5 {[%emt 0:02:23]} 12. b3 {[%emt 0:03:19]} b6 {[%emt 0:03:00]} 13. Bd3 {[%emt 0:14:23]} Be6 {[%emt 0:02:42]} 14. dxc5 {[%emt 0:08:18]} bxc5 {[%emt 0:02:55]} 15. Ne5 {[%emt 0:04:26]} Qc7 {[%emt 0:05:15]} 16. Nf3 {[%emt 0:02:53]} Rfd8 {[%emt 0:02:23]} 17. Qe2 {[%emt 0:06:24]} a6 {[%emt 0:03:39]} 18. Rfe1 {[%emt 0:07:23]} Nh5 {[%emt 0:08:07]} 19. Qe5 {[%emt 0:05:03]} Qxe5 {[%emt 0:01:24]} 20. Nxe5 {[%emt 0:00:58]} Bf6 {[%emt 0:03:12]} 21. Rad1 {[%emt 0:03:26]} Nf4 {[%emt 0:01:58]} 22. Nb1 {[%emt 0:04:26]} Nxd3 {[%emt 0:01:05]} 23. Nxd3 {[%emt 0:00:18]} c4 {[%emt 0:01:06]} 24. Nf4 {[%emt 0:00:52]} cxb3 {[%emt 0:02:30]} 25. cxb3 {[%emt 0:00:33]} Rd6 {[%emt 0:00:45]} 26. Nxe6 {[%emt 0:00:40]} fxe6 {[%emt 0:00:57]} 27. Nd2 {[%emt 0:02:15]} Rc8 {[%emt 0:01:22]} 28. Ne4 {[%emt 0:01:20]} Rdc6 {[%emt 0:00:47]} 29. Nxf6+ {[%emt 0:00:15]} gxf6 {[%emt 0:00:06]} 30. Kh2 {[%emt 0:01:31]} Kf7 {[%emt 0:00:27]} 31. Rd2 {[%emt 0:00:48]} Rc2 {[%emt 0:00:35]} 32. Ree2 {[%emt 0:00:15]} Rxd2 {[%emt 0:00:09]} 33. Rxd2 {[%emt 0:00:11]} Rc5 {[%emt 0:00:53]} 34. Kg3 {[%emt 0:00:41]} e5 {[%emt 0:00:54]} 35. b4 {[%emt 0:01:01]} Rb5 {[%emt 0:00:26]} 36. a3 {[%emt 0:00:22]} a5 {[%emt 0:00:26]} 37. bxa5 {[%emt 0:00:33]} Rxa5 {[%emt 0:00:08]} 38. Rd3 {[%emt 0:01:06]} Kg6 {[%emt 0:01:01]} 39. f3 {[%emt 0:00:45]} d4 {[%emt 0:00:55]} 40. Rb3 {[%emt 0:00:00]} Ra6 {[%emt 0:00:00]} 41. Rd3 {[%emt 0:05:27]} Rc6 {[%emt 0:01:39]} 42. Kf2 {[%emt 0:02:03]} Kg5 {[%emt 0:00:47]} 43. a4 {[%emt 0:01:26]} Rc2+ {[%emt 0:00:06]} 44. Kg3 {[%emt 0:01:07]} Ra2 {[%emt 0:00:28]} 45. h4+ {[%emt 0:00:32]} Kf5 {[%emt 0:00:54]} 46. Rb3 {[%emt 0:03:00]} Rxa4 {[%emt 0:00:10]} 47. Rd3 {[%emt 0:00:29]} Rc4 {[%emt 0:00:08]} 48. Kf2 {[%emt 0:01:36]} h5 {[%emt 0:00:55]} 49. g3 {[%emt 0:00:42]} e4 {[%emt 0:00:16]} 50. fxe4+ {[%emt 0:01:16]} Kxe4 {[%emt 0:00:37]} 51. Rd1 {[%emt 0:08:34]} Rc2+ {[%emt 0:00:42]} 52. Kf1 {[%emt 0:00:27]} f5 {[%emt 0:01:01]} 53. Kg1 {[%emt 0:06:32]} d3 {[%emt 0:01:08]} 54. Kf1 {[%emt 0:03:08]} Ke3 {[%emt 0:01:10]} 55. Re1+ {[%emt 0:01:18]} Re2 {[%emt 0:01:09]} 56. Rxe2+ {[%emt 0:01:26]} dxe2+ {[%emt 0:00:07]} 57. Ke1 {[%emt 0:00:08]} Kf3 {[%emt 0:00:08]} 58. g4 {[%emt 0:02:10]} fxg4 {[%emt 0:00:12]} 0-1